bitfinex-derivatives/quotes_ETHF0:USTF0_20250217
["timestamp","ask_amount","ask_price","bid_price","bid_amount"]
[1739814254579,1.26017,2739.1,2738.8,0.73012]
[1739814254776,1.26018,2739.1,2738.8,0.73014]
[1739814255378,0.7301,2739.0,2738.8,0.73014]
[1739814255577,1.26018,2739.1,2738.8,0.73014]
[1739814256078,1.26017,2739.1,2738.8,0.73014]
[1739814256277,1.26017,2739.1,2738.9,0.73012]
[1739814256679,0.5301,2739.1,2738.7,6.66742421]
[1739814256884,7.73395,2739.2,2739.0,0.73007]
[1739814257084,7.73395,2739.2,2738.9,0.7301]
[1739814257881,0.73007,2739.1,2738.9,0.7301]
[1739814258083,0.73007,2739.1,2738.8,0.73013]
[1739814258486,0.73007,2739.1,2738.9,0.73012]
[1739814259884,0.73007,2739.1,2738.9,0.73011]
[1739814260789,7.0039,2739.2,2738.7,3.45962421]
[1739814260985,7.0039,2739.2,2738.6,1.0973]
[1739814261188,1.82517,2739.1,2738.6,0.5489]
[1739814261477,0.73017,2738.8,2738.6,0.5489]
[1739814261684,0.5486,2738.7,2738.6,1.27909]
[1739814261986,0.73022,2738.5,2738.4,0.00547465]
[1739814262585,1.26132,2738.5,2738.4,0.00547465]
[1739814263786,0.5311,2738.5,2738.4,0.00547465]
[1739814264090,1.26132,2738.5,2738.4,0.00547465]
[1739814265791,4.46912,2738.5,2738.4,0.00547465]
[1739814267198,3.7389,2738.5,2738.4,0.00547465]
[1739814267599,4.46912,2738.5,2738.4,0.00547465]
[1739814268393,3.7389,2738.5,2738.4,0.00547465]
[1739814268594,4.46912,2738.5,2738.4,0.00547465]
[1739814280317,5.9008,2738.5,2738.4,0.73572465]
[1739814280512,2.693,2738.5,2738.4,0.73572465]
[1739814280917,3.42322,2738.5,2738.4,0.00547465]
[1739814281810,2.693,2738.5,2738.4,0.00547465]
[1739814282006,3.42322,2738.5,2738.4,0.73572465]
[1739814282211,3.42322,2738.5,2738.4,0.00547465]
[1739814282812,2.693,2738.5,2738.4,0.73572465]
[1739814283121,3.42322,2738.5,2738.4,0.73572465]
[1739814284615,3.42322,2738.5,2738.4,0.00547465]
[1739814285011,2.693,2738.5,2738.4,0.00547465]
[1739814285221,2.693,2738.5,2738.4,0.73572465]
[1739814285718,3.42322,2738.5,2738.4,0.00547465]
[1739814286313,6.63102,2738.5,2738.4,0.00547465]
[1739814286710,1.82566,2738.4,2737.9,0.5406]
[1739814286915,0.73036,2738.0,2737.9,0.5406]
[1739814289425,0.73036,2738.0,2737.9,1.27098]
[1739814290124,0.73036,2738.0,2737.9,0.5406]
[1739814290525,0.73036,2738.0,2737.9,1.27098]
[1739814291026,3.2229,2738.1,2737.9,1.27098]
[1739814291227,3.95325,2738.1,2737.9,1.27098]
[1739814291627,3.2229,2738.1,2737.9,0.5406]
[1739814291821,0.73036,2738.0,2737.9,1.27098]
[1739814292016,0.73036,2738.0,2737.9,0.5406]
[1739814292316,0.73036,2738.0,2737.7,0.00547465]
[1739814292317,0.73041,2737.8,2737.7,0.00547465]
[1739814292824,1.82603,2737.8,2737.2,0.73056]
[1739814293021,0.73053,2737.4,2737.2,0.5679]
[1739814293222,0.73053,2737.4,2737.2,1.29847]
[1739814293422,1.1044,2737.5,2737.2,0.5679]
[1739814293618,3.2078,2737.3,2737.2,0.5679]
[1739814294327,0.73053,2737.4,2737.2,1.29847]
[1739814294824,0.73053,2737.4,2737.2,0.5679]
[1739814295524,2.691,2737.3,2737.0,0.00547465]
[1739814295729,1.28679,2737.2,2737.0,0.00547465]
[1739814296322,0.5562,2737.2,2737.0,0.00547465]
[1739814296522,1.28678,2737.2,2737.0,0.00547465]
[1739814297236,1.28678,2737.2,2737.0,0.73609465]
[1739814297429,1.28678,2737.2,2737.0,0.00547465]
[1739814297732,1.28677,2737.2,2737.0,0.73608465]
[1739814298028,1.28677,2737.2,2737.0,0.00547465]
[1739814298522,1.28677,2737.2,2736.1,3.7319]
[1739814298523,0.73075,2736.6,2736.1,3.7319]
[1739814298837,0.73078,2736.5,2736.1,4.46274]
[1739814299131,1.0805,2736.5,2736.1,4.46275]
[1739814299324,1.0805,2736.5,2736.1,3.7319]
[1739814299527,0.73079,2736.4,2736.1,4.46275]
[1739814299922,0.73078,2736.4,2736.1,4.46275]
[1739814300124,1.0805,2736.5,2736.1,3.7319]
[1739814300323,1.0805,2736.5,2736.1,0.5241]
[1739814300534,0.73082,2736.3,2736.1,0.5241]
[1739814300831,2.691,2736.2,2736.1,0.5241]
[1739814301333,0.73086,2736.1,2736.0,0.5501]
[1739814301628,0.7309,2736.0,2735.8,0.555]
[1739814301831,3.2078,2736.1,2735.8,0.555]
[1739814302038,0.73092,2735.9,2735.8,0.555]
[1739814302829,0.73093,2735.9,2735.5,1.1045]
[1739814303135,2.691,2735.8,2735.5,1.8355]
[1739814303328,2.691,2735.8,2735.6,0.73098]
[1739814303529,2.691,2735.8,2735.5,1.1045]
[1739814304234,0.73097,2735.7,2735.5,0.5639]
[1739814304531,2.691,2735.8,2735.4,3.93884]
[1739814304532,5.8988,2735.8,2735.4,3.2078]
[1739814304727,0.73107,2735.4,2735.2,0.555]
[1739814304926,3.42107,2735.4,2735.2,0.555]
[1739814305133,2.69,2735.4,2735.2,0.555]
[1739814305332,2.69,2735.4,2735.2,1.28609]
[1739814305525,2.69,2735.4,2735.3,0.73108]
[1739814305922,0.5257,2735.9,2735.2,4.2954899]
[1739814306228,0.5257,2735.9,2735.4,3.2078]
[1739814306427,2.691,2735.8,2735.7,0.73095]
[1739814306627,3.2078,2736.1,2736.0,0.73089]
[1739814307028,0.5387,2736.4,2735.8,3.45962421]
[1739814307029,2.69,2736.3,2735.8,3.45962421]
[1739814307230,0.00547465,2736.6,2736.1,3.2078]
[1739814307433,0.00547465,2736.6,2736.5,0.73076]
[1739814308326,0.00547465,2736.6,2736.2,1.6027]
[1739814308719,0.00547465,2736.6,2736.2,1.0764]
[1739814308931,0.73077,2736.5,2736.2,1.0764]
[1739814309326,1.84041465,2736.6,2736.2,1.80724]
[1739814309829,1.84041465,2736.6,2736.2,1.0764]
[1739814310032,1.10967465,2736.6,2736.4,0.73078]
[1739814310938,0.54417465,2736.6,2736.5,0.73076]
[1739814311128,0.00547465,2736.6,2736.5,0.73076]
[1739814311833,2.69,2736.9,2736.8,0.73068]
[1739814312131,5.8978,2737.2,2737.1,0.7306]
[1739814313133,5.8978,2737.2,2737.0,0.73061]
[1739814313328,5.8978,2737.2,2736.9,0.56997465]
[1739814313529,5.8978,2737.2,2737.1,0.7306]
[1739814313726,0.00547465,2737.4,2737.3,0.73054]
[1739814313927,0.00547465,2737.4,2737.3,4.19016421]
[1739814314123,0.00547465,2737.4,2737.3,0.73054]
[1739814314329,0.00547465,2737.4,2737.1,0.5495]
[1739814314535,0.00547465,2737.4,2737.2,0.73057]
[1739814314735,0.00547465,2737.4,2737.1,1.28008]
[1739814315037,3.2078,2737.2,2736.9,0.56997465]
[1739814315238,0.73062,2737.0,2736.9,0.00547465]
[1739814315833,0.5365,2737.1,2736.9,0.00547465]
[1739814316336,0.73062,2737.0,2736.9,0.00547465]
[1739814316538,0.5365,2737.1,2736.9,0.00547465]
[1739814316938,3.778,2737.2,2736.9,0.00547465]
[1739814316939,3.2078,2737.2,2736.9,0.00547465]
[1739814317139,3.2078,2737.2,2737.1,0.7306]
[1739814317340,0.7306,2737.1,2736.9,0.00547465]
[1739814317533,3.2078,2737.2,2736.9,0.00547465]
[1739814317940,0.73055,2737.3,2736.9,0.73610465]
[1739814318247,0.56107465,2737.4,2736.9,0.73611465]
[1739814318248,3.41958,2737.2,2736.9,0.73611465]
[1739814318446,2.689,2737.2,2736.9,0.00547465]
[1739814318647,0.73062,2737.0,2736.9,0.00547465]
[1739814319039,1.30862,2737.0,2736.9,0.00547465]
[1739814319633,4.51642,2737.0,2736.9,0.00547465]
[1739814321742,1.82677,2736.7,2736.0,3.2078]
[1739814321950,9.90812421,2736.6,2735.7,3.745]
[1739814322148,0.73082,2736.3,2735.7,3.745]
[1739814322343,0.73084,2736.2,2735.7,4.47596]
[1739814322644,0.73084,2736.2,2735.7,3.745]
[1739814322645,0.73088,2736.1,2735.7,3.745]
[1739814323344,2.688,2736.2,2735.7,3.2078]
[1739814323549,7.39832421,2736.0,2735.4,3.2078]
[1739814323739,3.2078,2736.0,2735.7,0.73096]
[1739814324142,3.21327465,2736.0,2735.9,0.0018667]
[1739814324449,0.00547465,2736.0,2735.9,0.0018667]
[1739814324952,0.00547465,2736.0,2735.9,4.19241091]
[1739814325143,0.00547465,2736.0,2735.9,0.7327867]
[1739814325539,0.00547465,2736.0,2735.9,0.0018667]
[1739814325746,3.94416465,2736.0,2735.9,0.0018667]
[1739814325946,7.40378886,2736.0,2735.9,0.0018667]
[1739814326147,7.40378886,2736.0,2734.7,3.2078]
[1739814326148,39.49619886,2736.0,2734.7,3.2078]
[1739814326344,6.66742421,2735.3,2734.5,1.83418]
[1739814326544,0.73115,2735.1,2734.5,1.1029]
[1739814326842,3.8128,2735.2,2734.5,1.1029]
[1739814327038,3.2078,2734.9,2734.1,3.2078]
[1739814327244,2.688,2734.8,2734.1,3.93919]
[1739814327444,3.45962421,2734.7,2734.1,3.2078]
[1739814327655,3.2078,2734.6,2734.1,3.2078]
[1739814328151,3.21328486,2734.6,2734.5,0.73129]
[1739814328345,3.21328486,2734.6,2734.5,4.19091421]
[1739814328551,0.00548486,2734.6,2734.5,4.19091421]
[1739814329054,0.00548486,2734.6,2734.5,4.76301421]
[1739814329354,0.00548486,2734.6,2734.2,4.19098421]
[1739814329552,2.69348486,2734.6,2734.1,0.5721]
[1739814329853,0.73132,2734.4,2734.1,0.5721]
[1739814330348,0.00548486,2734.6,2734.1,3.7799]
[1739814330657,3.2078,2734.8,2734.5,0.73129]
[1739814331154,3.2078,2734.8,2734.3,3.45962421]
[1739814331451,3.2078,2735.2,2734.9,0.73118]
[1739814331655,5.8958,2735.2,2734.9,0.73118]
[1739814331848,5.8958,2735.2,2734.7,3.7463]
[1739814332052,5.8958,2735.2,2735.0,0.73115]
[1739814332353,3.2078,2735.2,2735.0,0.73114]
[1739814332653,3.93892,2735.2,2734.8,0.5713]
[1739814332954,3.2078,2734.9,2734.3,7.40423907]
[1739814333152,3.2078,2734.9,2734.3,7.40422907]
[1739814333342,3.2078,2734.9,2734.3,6.67290907]
[1739814333543,2.688,2734.8,2734.3,6.67290907]
[1739814334052,2.688,2734.8,2734.7,0.73124]
[1739814334653,2.688,2734.8,2734.6,0.73125]
[1739814334842,2.688,2734.8,2734.7,0.73124]
[1739814335255,2.688,2735.2,2734.7,0.73124]
[1739814335554,2.687,2735.2,2734.6,6.66742421]
[1739814335750,2.687,2735.2,2734.9,0.73117]
[1739814335945,2.687,2735.2,2734.9,0.73116]
[1739814336151,2.687,2735.2,2734.9,0.73118]
[1739814336656,2.687,2735.2,2735.0,0.73115]
[1739814337057,2.687,2735.2,2734.7,0.5688]
[1739814337058,2.687,2735.2,2735.1,0.73113]
[1739814337454,2.687,2735.2,2735.0,0.73115]
[1739814337655,3.41812,2735.2,2734.9,0.73116]
[1739814337857,2.687,2735.2,2734.9,0.73116]
[1739814338160,2.687,2735.2,2735.1,0.73113]
[1739814338349,2.687,2735.2,2734.9,0.73117]
[1739814338652,2.687,2735.2,2734.7,0.5688]
[1739814339048,1.1323,2735.1,2734.7,0.5688]
[1739814340052,2.687,2735.2,2734.7,0.5688]
[1739814340355,2.687,2735.2,2735.1,0.73113]
[1739814340553,0.00548486,2735.3,2735.2,0.7311]
[1739814341453,0.00548486,2735.3,2735.2,3.9389]
[1739814341757,0.00548486,2735.3,2735.2,1.3096]
[1739814342657,0.00548486,2735.3,2735.2,4.5174]
[1739814343154,2.687,2735.9,2735.2,9.7863]
[1739814343353,2.687,2735.9,2735.8,0.73094]
[1739814343553,3.8096,2736.2,2735.6,3.2078]
[1739814343854,2.687,2736.2,2735.7,1.0921]
[1739814344153,3.41785,2736.2,2736.0,0.73088]
[1739814344355,2.69248486,2736.2,2736.1,0.73086]
[1739814344650,0.00548486,2736.2,2736.1,0.73086]
[1739814344851,0.00548486,2736.2,2735.5,0.5409]
[1739814344852,3.46510907,2736.2,2734.8,2.918]
[1739814345059,3.2078,2735.2,2734.4,0.82019075]
[1739814345256,3.93892,2735.2,2734.4,0.5379]
[1739814345457,0.73114,2735.1,2734.4,0.5379]
[1739814345858,0.73114,2735.1,2734.8,0.73121]
[1739814346062,0.73117,2735.0,2734.5,0.00548486]
[1739814346263,0.73119,2734.9,2734.5,0.00548486]
[1739814346468,0.73119,2734.9,2734.6,0.73126]
[1739814346758,0.73117,2735.0,2734.5,0.00548486]
[1739814347063,3.2078,2735.2,2734.8,0.73119]
[1739814347064,0.73114,2735.1,2734.8,0.73119]
[1739814347358,3.7826,2735.3,2734.5,3.21328486]
[1739814347860,2.687,2735.5,2735.4,0.73104]
[1739814348057,1.1295,2736.0,2735.1,3.2078]
[1739814348257,3.2078,2736.1,2735.4,3.2078]
[1739814348750,0.00548486,2736.2,2736.1,0.73086]
[1739814348952,0.00548486,2736.2,2735.7,3.2078]
[1739814349157,0.00548486,2736.2,2736.1,0.73086]
[1739814349755,0.00548486,2736.2,2736.0,3.2078]
[1739814350058,0.00548486,2736.2,2736.1,0.73086]
[1739814350460,0.00548486,2736.2,2736.0,3.2078]
[1739814350960,0.00548486,2736.2,2735.8,0.5497]
[1739814351161,3.21328486,2736.2,2735.7,0.00548486]
[1739814351463,0.73092,2735.9,2735.7,0.00548486]
[1739814351655,0.73093,2735.9,2735.7,0.00548486]
[1739814351855,3.21328486,2736.2,2735.7,0.00548486]
[1739814352363,0.73094,2735.9,2735.7,0.00548486]
[1739814352565,0.5706,2735.8,2735.7,0.00548486]
[1739814353455,1.30154,2735.8,2735.7,0.00548486]
[1739814353660,0.5706,2735.8,2735.7,0.00548486]
[1739814353962,5.89928486,2736.2,2735.7,0.00548486]
[1739814354164,0.57608486,2736.2,2735.7,0.00548486]
[1739814354361,0.00548486,2736.2,2736.1,0.73086]
[1739814354955,0.00548486,2736.2,2735.8,1.0676]
[1739814355760,0.00548486,2736.2,2736.1,0.73086]
[1739814355958,0.00548486,2736.2,2735.8,1.0676]
[1739814356261,0.73633486,2736.2,2735.8,1.0676]
[1739814356458,0.00548486,2736.2,2736.1,0.73086]
[1739814356968,0.00548486,2736.2,2735.8,1.0676]
[1739814357259,0.00548486,2736.2,2736.0,0.73088]
[1739814357260,0.73632486,2736.2,2736.0,0.73088]
[1739814357465,0.73632486,2736.2,2735.8,1.0676]
[1739814357666,0.73632486,2736.2,2735.9,0.73091]
[1739814358061,0.73632486,2736.2,2736.0,0.73088]
[1739814358365,0.00548486,2736.2,2735.8,1.0676]
[1739814358566,0.00548486,2736.2,2735.7,0.00548486]
[1739814358769,0.73094,2735.8,2735.7,0.00548486]
[1739814359063,2.685,2736.0,2735.7,0.00548486]
[1739814359257,0.5524,2735.9,2735.7,0.00548486]
[1739814359459,0.5524,2735.9,2735.8,0.73094]
[1739814359659,1.28332,2735.9,2735.7,0.00548486]
[1739814359859,0.5524,2735.9,2735.7,0.00548486]
[1739814360065,0.73094,2735.8,2735.7,0.00548486]
[1739814361668,1.0892,2735.9,2735.7,0.00548486]
[1739814361868,0.73094,2735.8,2735.7,0.00548486]
[1739814362066,0.5524,2735.9,2735.7,0.00548486]
[1739814362365,2.685,2735.9,2735.8,0.73094]
[1739814363172,0.7309,2736.0,2735.7,0.00548486]
[1739814363369,0.73094,2735.8,2735.7,0.00548486]
[1739814364871,0.73094,2735.8,2735.7,0.73645486]
[1739814365271,0.73094,2735.9,2735.7,0.73645486]
[1739814365570,4.88637064,2736.1,2735.7,0.73645486]
[1739814365873,0.73094,2735.9,2735.8,0.73094]
[1739814366171,0.73094,2735.8,2735.7,0.00548486]
[1739814367061,4.88637064,2736.1,2735.7,0.73645486]
[1739814367269,0.73094,2735.9,2735.7,0.73644486]
[1739814367469,0.73094,2735.9,2735.7,0.00548486]
[1739814367771,0.73094,2735.9,2735.7,0.73643486]
[1739814367972,4.88637064,2736.1,2735.7,0.00548486]
[1739814368174,0.73091,2736.0,2735.8,0.73093]
[1739814368364,0.73092,2735.9,2735.8,0.73093]
[1739814368566,0.73092,2735.9,2735.8,0.73094]
[1739814368866,0.73094,2735.8,2735.7,0.00548486]
[1739814369464,5.83658018,2736.1,2735.7,0.00548486]
[1739814369465,4.00940018,2736.1,2735.7,0.00548486]
[1739814369668,0.73089,2736.0,2735.8,0.73092]
[1739814370365,0.73089,2736.0,2735.7,0.00548486]
[1739814370567,0.5411,2736.1,2735.7,0.00548486]
[1739814370774,0.73091,2736.0,2735.8,0.73093]
[1739814371077,0.5411,2736.1,2735.8,0.73093]
[1739814371270,0.5411,2736.1,2735.7,0.00548486]
[1739814371471,0.73089,2736.0,2735.8,0.73093]
[1739814371672,3.21328486,2736.2,2735.7,3.21328486]
[1739814371872,3.21328486,2736.2,2736.1,0.73086]
[1739814372268,0.00548486,2736.2,2735.8,0.5284]
[1739814372570,0.7309,2736.0,2735.9,0.73092]
[1739814372767,0.00548486,2736.2,2735.8,0.5284]
[1739814372971,0.73088,2736.1,2735.8,0.5284]
[1739814373172,0.73088,2736.1,2736.0,0.73089]
[1739814373373,0.00548486,2736.2,2735.8,0.5284]
[1739814373576,0.00548486,2736.2,2736.1,0.73086]
[1739814376277,3.46830018,2737.0,2736.1,9.46830018]
[1739814376482,3.46830018,2737.0,2736.9,0.73065]
[1739814376781,6.36566787,2737.2,2737.0,0.73062]
[1739814376979,6.36565787,2737.2,2737.0,0.73061]
[1739814377381,0.7306,2737.1,2736.6,0.5739]
[1739814377679,0.73061,2737.1,2737.0,0.73062]
[1739814378083,1.80008,2737.2,2737.0,0.73062]
[1739814378379,1.0695,2737.2,2736.6,0.5739]
[1739814378679,0.73062,2737.1,2736.9,0.73063]
[1739814378875,1.0695,2737.2,2736.6,0.5739]
[1739814379382,1.80008,2737.2,2737.0,0.73062]
[1739814379575,1.0695,2737.2,2736.6,0.5739]
[1739814379775,0.7306,2737.1,2737.0,0.73062]
[1739814379980,0.7306,2737.1,2736.9,0.73064]
[1739814380178,1.0695,2737.2,2736.9,0.73064]
[1739814380383,1.80009,2737.2,2736.9,0.73064]
[1739814380584,1.80009,2737.2,2737.0,0.73061]
[1739814380978,1.80009,2737.2,2736.6,0.5739]
[1739814380979,1.0695,2737.2,2736.6,2.40069]
[1739814381182,1.0695,2737.2,2736.6,0.5739]
[1739814381386,1.0695,2737.2,2737.1,0.7306]
[1739814381683,0.73061,2737.1,2736.8,0.73066]
[1739814381874,0.73061,2737.1,2736.6,0.5739]
[1739814381875,3.46830018,2737.0,2736.6,0.5739]
[1739814382183,0.73078,2736.4,2736.1,0.73084]
[1739814382386,1.08,2736.3,2736.0,0.73088]
[1739814382688,1.08,2736.3,2736.1,0.73086]
[1739814383086,1.08,2736.3,2735.8,1.0704]
[1739814383289,1.08,2736.3,2736.2,0.73084]
[1739814384484,6.15030018,2737.0,2736.1,3.2078]
[1739814384791,1.098,2736.9,2736.2,1.8271]
[1739814384992,1.098,2736.9,2736.8,0.73068]
[1739814385289,3.46830018,2737.3,2736.6,1.82681]
[1739814385479,3.46830018,2737.3,2736.9,0.73063]
[1739814385683,4.19894018,2737.0,2736.7,0.7307]
[1739814386193,3.46830018,2737.0,2736.5,0.5606]
[1739814386589,0.73063,2737.0,2736.8,0.73066]
[1739814386885,0.73061,2737.1,2736.9,0.73064]
[1739814387282,4.34299327,2737.2,2736.8,0.73065]
[1739814387283,3.93843,2737.0,2736.8,0.73065]
[1739814387890,3.2078,2737.0,2736.9,0.73065]
[1739814390291,0.73055,2737.3,2736.7,3.2078]
[1739814390493,0.73055,2737.3,2737.1,0.73058]
[1739814390786,8.66417813,2737.4,2736.7,5.03453]
[1739814391190,4.32118486,2737.4,2736.7,5.03453]
[1739814391493,5.05171486,2737.4,2737.2,0.73055]
[1739814391691,4.32118486,2737.4,2736.9,1.82663]
[1739814391893,3.75938486,2737.4,2737.3,0.73054]
[1739814392687,0.55158486,2737.4,2737.3,0.73054]
[1739814392891,0.00548486,2737.4,2737.3,0.73054]
[1739814394386,0.73601486,2737.4,2737.1,0.53958486]
[1739814394795,0.73601486,2737.4,2737.3,0.73054]
[1739814395098,0.73601486,2737.4,2737.2,0.73056]
[1739814395890,0.00548486,2737.4,2737.1,0.53958486]
[1739814396193,3.21328486,2737.4,2737.1,0.73607486]
[1739814396489,3.21328486,2737.4,2737.1,0.73606486]
[1739814396697,0.73055,2737.3,2737.1,0.73606486]
[1739814397092,3.94382486,2737.4,2737.1,0.73606486]
[1739814397285,3.94382486,2737.4,2737.1,0.00548486]
[1739814397489,0.73055,2737.3,2737.1,0.73607486]
[1739814398505,1.29025,2737.3,2737.1,0.73607486]
[1739814398702,0.5597,2737.3,2737.1,0.00548486]
[1739814398994,0.73057,2737.2,2737.1,0.00548486]
[1739814399201,1.0928,2737.3,2737.1,0.00548486]
[1739814399395,0.5597,2737.3,2737.2,0.73057]
[1739814400302,1.29026,2737.3,2737.2,0.73057]
[1739814401901,3.21328486,2737.4,2737.3,0.73054]
[1739814402803,0.00548486,2737.4,2737.3,0.73054]
[1739814403106,0.00548486,2737.4,2737.3,1.01468028]
[1739814403300,3.2078,2737.7,2737.6,0.73046]
[1739814403803,2.679,2738.4,2737.6,0.73046]
[1739814404105,2.679,2738.5,2737.8,5.03379]
[1739814404300,0.73027,2738.4,2737.9,1.6584]
[1739814404594,0.73575486,2738.4,2738.2,0.7303]
[1739814404797,0.00548486,2738.4,2738.2,0.7303]
[1739814405201,0.00548486,2738.4,2737.9,1.6584]
[1739814405403,0.00548486,2738.4,2738.2,0.7303]
[1739814406110,0.00548486,2738.4,2738.2,0.73029]
[1739814406604,0.00548486,2738.4,2738.1,3.2078]
[1739814406809,0.00548486,2738.4,2738.3,0.73028]
[1739814407008,1.0958,2739.1,2738.1,9.34870603]
[1739814407203,4.55770603,2739.1,2738.1,9.34870603]
[1739814407506,0.73011,2739.0,2738.4,0.73025]
[1739814407912,0.73013,2738.9,2738.1,9.34870603]
[1739814408204,0.73015,2738.8,2738.4,0.00548486]
[1739814408398,3.2078,2738.6,2738.4,0.00548486]
[1739814408598,1.82602,2738.5,2738.4,0.00548486]
[1739814409007,1.0958,2738.5,2738.4,0.00548486]
[1739814412014,4.3036,2738.5,2738.4,0.00548486]
[1739814412206,5.03382,2738.5,2738.4,0.00548486]
[1739814412608,0.73032,2738.2,2737.5,4.316]
[1739814412809,2.677,2738.2,2737.9,0.73037]
[1739814413113,3.40732,2738.2,2737.8,0.73039]
[1739814413802,2.677,2738.2,2737.7,0.00548486]
[1739814414008,6.13890603,2738.2,2737.7,0.00548486]
[1739814414201,0.73033,2738.1,2737.8,0.7304]
[1739814414808,0.00548486,2739.0,2738.0,3.2078]
[1739814415109,0.00548486,2739.0,2738.9,3.46190603]
[1739814416010,0.00548486,2739.0,2738.9,4.19202603]
[1739814416508,0.00548486,2739.0,2738.9,7.39982603]
[1739814416708,0.00548486,2739.0,2738.9,8.27202243]
[1739814417405,6.61469,2739.8,2739.4,0.72997]
[1739814417608,5.8848,2739.8,2739.4,0.72997]
[1739814417914,3.2078,2739.8,2739.5,0.72995]
[1739814418107,3.93769,2739.8,2739.5,0.72995]
[1739814418309,3.2078,2739.8,2739.2,4.33410243]
[1739814418510,0.72991,2739.7,2739.4,0.72996]
[1739814418813,3.21328486,2739.8,2739.2,4.33958729]
[1739814419007,3.21328486,2739.8,2739.6,0.72991]
[1739814419307,3.21328486,2739.8,2739.2,0.00548486]
[1739814419512,0.72997,2739.5,2739.2,0.00548486]
[1739814420006,3.21328486,2739.8,2739.2,0.00548486]
[1739814420207,3.21328486,2739.8,2739.3,0.73001]
[1739814420509,3.21328486,2739.8,2739.5,4.33410243]
[1739814420808,0.72991,2739.7,2739.3,3.93781]
[1739814421117,2.676,2739.7,2739.2,0.00548486]
[1739814421306,0.73001,2739.3,2739.2,0.00548486]
[1739814421712,3.40601,2739.3,2739.2,0.00548486]
[1739814422310,2.676,2739.3,2739.2,0.00548486]
[1739814422515,3.40601,2739.3,2739.2,0.00548486]
[1739814422710,2.676,2739.3,2739.2,0.00548486]
[1739814422913,3.2078,2739.5,2739.2,0.00548486]
[1739814423211,2.676,2739.4,2739.2,0.00548486]
[1739814423513,3.40599,2739.4,2739.2,0.00548486]
[1739814423715,2.676,2739.4,2739.2,0.00548486]
[1739814424511,3.406,2739.4,2739.2,0.00548486]
[1739814424818,3.2078,2739.5,2739.2,0.00548486]
[1739814425017,2.676,2739.6,2739.4,0.72997]
[1739814425217,2.676,2739.6,2739.3,0.73]
[1739814425719,2.676,2739.6,2739.2,0.00548486]
[1739814425914,0.00548486,2739.8,2739.5,4.33410243]
[1739814426415,0.00548486,2739.8,2739.5,5.06405243]
[1739814426615,0.00548486,2739.8,2739.5,5.06404243]
[1739814427120,0.73536486,2739.8,2739.5,0.72994]
[1739814427320,0.00548486,2739.8,2739.6,0.72993]
[1739814427516,0.00548486,2739.8,2739.2,7.54738729]
[1739814427718,0.73537486,2739.8,2739.2,7.54738729]
[1739814428016,0.73537486,2739.8,2739.5,0.72995]
[1739814428607,0.00548486,2739.8,2739.3,1.82504]
[1739814428813,0.00548486,2739.8,2739.5,4.33410243]
[1739814429017,0.00548486,2739.8,2739.6,0.72992]
[1739814429219,0.00548486,2739.8,2739.2,7.54738729]
[1739814429519,0.72991,2739.7,2739.4,0.72998]
[1739814429720,0.73537486,2739.8,2739.5,0.72994]
[1739814430314,0.72991,2739.7,2739.4,0.72998]
[1739814430515,0.00548486,2739.8,2739.2,7.54738729]
[1739814430714,0.73537486,2739.8,2739.5,0.72995]
[1739814430917,0.00548486,2739.8,2739.6,0.72993]
[1739814431117,0.73536486,2739.8,2739.2,7.54738729]
[1739814431415,0.72991,2739.7,2739.4,0.72997]
[1739814431616,0.72991,2739.7,2739.2,7.54738729]
[1739814431823,0.73538486,2739.8,2739.5,0.72994]
[1739814432023,0.00548486,2739.8,2739.2,7.54738729]
[1739814432218,0.72991,2739.7,2739.2,7.54738729]
[1739814432720,0.72991,2739.7,2739.5,0.72996]
[1739814433019,0.00548486,2739.8,2739.6,0.72992]
[1739814433416,0.00548486,2739.8,2739.2,7.54738729]
[1739814433720,0.7299,2739.7,2739.5,0.72995]
[1739814434019,0.00548486,2739.8,2739.7,0.7299]
[1739814434520,0.00548486,2739.8,2739.5,4.33410243]
[1739814434711,0.00548486,2739.8,2739.7,0.7299]
[1739814435222,0.73537486,2739.8,2739.6,0.72991]
[1739814435523,0.00548486,2739.8,2739.6,0.72991]
[1739814435725,0.00548486,2739.8,2739.7,0.7299]
[1739814436121,3.2078,2740.6,2739.9,1.82462]
[1739814436324,3.2078,2740.6,2740.2,4.33410243]
[1739814436626,3.2078,2740.6,2740.0,3.2078]
[1739814436627,3.2078,2740.6,2740.4,3.45511988]
[1739814437120,3.2078,2740.6,2740.4,4.18481988]
[1739814437626,3.2078,2740.6,2740.5,0.72969]
[1739814437923,3.2078,2740.6,2740.4,3.45511988]
[1739814438221,3.2078,2740.6,2740.3,0.5493]
[1739814438620,3.2078,2740.6,2740.4,0.7297]
[1739814439718,3.2078,2740.6,2740.5,0.72969]
[1739814439912,3.2078,2740.6,2740.5,4.18480988]
[1739814440121,0.00547475,2740.8,2740.7,0.72964]
[1739814441721,0.00547475,2740.8,2740.4,3.2078]
[1739814442026,0.72971,2740.5,2740.3,0.5493]
[1739814442224,2.673,2740.7,2740.3,0.5493]
[1739814442725,0.72971,2740.5,2740.3,0.5493]
[1739814443027,0.72969,2740.5,2740.3,0.5493]
[1739814443223,0.72977,2740.3,2740.0,6.66291988]
[1739814443418,0.5535,2740.4,2740.0,3.45511988]
[1739814443614,0.7298,2740.2,2740.0,3.45511988]
[1739814443928,0.5723,2740.3,2740.0,3.45511988]
[1739814444223,0.5723,2740.3,2740.1,0.72979]
[1739814444627,2.673,2740.6,2740.0,6.66291988]
[1739814444820,2.673,2740.6,2740.4,0.72972]
[1739814445223,0.7297,2740.5,2740.3,3.45511988]
[1739814445729,2.673,2740.6,2740.3,3.45511988]
[1739814446026,0.72972,2740.4,2740.1,0.5434]
[1739814446221,0.72972,2740.4,2740.1,1.27318]
[1739814446624,0.72972,2740.5,2740.1,0.5434]
[1739814446928,0.72969,2740.5,2740.2,0.72976]